[Event "*** Titled Tuesday Blitz"]
[Site "Chess.com"]
[Date "2020.11.10"]
[Round "1"]
[White "AvitalBor"]
[Black "KatarinaOstojic"]
[Result "1-0"]
[WhiteElo "2677"]
[BlackElo "2344"]
[TimeControl "180+1"]
[EndTime "10:06:14 PST"]
[Termination "AvitalBor won by checkmate"]

1. e4 {[%clk 0:03:00.9]} 1... c5 {[%clk 0:02:58.6]} 2. c3 {[%clk 0:02:58]} 2...
d5 {[%clk 0:02:56.9]} 3. exd5 {[%clk 0:02:58.9]} 3... Qxd5 {[%clk 0:02:57.2]} 4.
d4 {[%clk 0:02:59.8]} 4... Nf6 {[%clk 0:02:57.1]} 5. Nf3 {[%clk 0:02:59.9]} 5...
e6 {[%clk 0:02:57.7]} 6. Bd3 {[%clk 0:02:56]} 6... Be7 {[%clk 0:02:55.2]} 7. O-O
{[%clk 0:02:56.1]} 7... O-O {[%clk 0:02:55.1]} 8. Be3 {[%clk 0:02:56.4]} 8...
cxd4 {[%clk 0:02:44.5]} 9. cxd4 {[%clk 0:02:57.3]} 9... Nc6 {[%clk 0:02:44.9]}
10. Nc3 {[%clk 0:02:57.7]} 10... Qd8 {[%clk 0:02:45.2]} 11. a3 {[%clk
0:02:57.4]} 11... b6 {[%clk 0:02:45]} 12. Qe2 {[%clk 0:02:54.2]} 12... Bb7
{[%clk 0:02:43.1]} 13. Rad1 {[%clk 0:02:53.3]} 13... Rc8 {[%clk 0:02:40.8]} 14.
Bb1 {[%clk 0:02:51.6]} 14... Nd5 {[%clk 0:02:18.5]} 15. Qd3 {[%clk 0:02:43.7]}
15... g6 {[%clk 0:02:17.8]} 16. Bh6 {[%clk 0:02:42]} 16... Re8 {[%clk
0:02:17.1]} 17. Ne4 {[%clk 0:02:39.6]} 17... Bf8 {[%clk 0:01:57.6]} 18. Qd2
{[%clk 0:02:38.8]} 18... f5 {[%clk 0:01:43.9]} 19. Ng3 {[%clk 0:02:22.6]} 19...
Qe7 {[%clk 0:01:33.5]} 20. Rfe1 {[%clk 0:02:18.9]} 20... Bg7 {[%clk 0:01:22.5]}
21. Bxg7 {[%clk 0:02:17.1]} 21... Qxg7 {[%clk 0:01:23.4]} 22. Ba2 {[%clk
0:02:17.5]} 22... Rcd8 {[%clk 0:01:18.8]} 23. Ng5 {[%clk 0:02:12]} 23... e5
{[%clk 0:01:12.8]} 24. dxe5 {[%clk 0:02:05]} 24... Nxe5 {[%clk 0:01:13.7]} 25.
f4 {[%clk 0:02:04.1]} 25... Nf7 {[%clk 0:00:52.4]} 26. Rxe8+ {[%clk 0:02:00.9]}
26... Rxe8 {[%clk 0:00:52.2]} 27. Bxd5 {[%clk 0:02:01.4]} 27... Bxd5 {[%clk
0:00:37.9]} 28. Qxd5 {[%clk 0:01:57.1]} 28... Re7 {[%clk 0:00:23.9]} 29. Nxf7
{[%clk 0:01:52]} 29... Rxf7 {[%clk 0:00:23.3]} 30. Qd4 {[%clk 0:01:48.1]} 30...
Qh6 {[%clk 0:00:21.8]} 31. Rc1 {[%clk 0:01:35.6]} 31... Rf8 {[%clk 0:00:15]} 32.
Qd5+ {[%clk 0:01:34.4]} 32... Kh8 {[%clk 0:00:14.1]} 33. Qe5+ {[%clk 0:01:34.4]}
33... Kg8 {[%clk 0:00:14.3]} 34. Ne2 {[%clk 0:01:31.7]} 34... Rd8 {[%clk
0:00:13.2]} 35. Qe6+ {[%clk 0:01:29.4]} 35... Kf8 {[%clk 0:00:11.6]} 36. Qf6+
{[%clk 0:01:23]} 36... Ke8 {[%clk 0:00:11.8]} 37. Nd4 {[%clk 0:01:21.8]} 37...
Qxf4 {[%clk 0:00:09.3]} 38. Re1+ {[%clk 0:01:21.7]} 38... Kd7 {[%clk 0:00:08.4]}
39. Qc6# {[%clk 0:01:19.3]} 1-0

[Event "*** Titled Tuesday Blitz"]
[Site "Chess.com"]
[Date "2020.11.10"]
[Round "1"]
[White "MoreChessJulia"]
[Black "m_ezat"]
[Result "1-0"]
[WhiteElo "2091"]
[BlackElo "2493"]
[TimeControl "180+1"]
[EndTime "10:06:16 PST"]
[Termination "MoreChessJulia won by checkmate"]

1. d4 {[%clk 0:02:59.6]} 1... Nf6 {[%clk 0:02:56.3]} 2. c4 {[%clk 0:02:59.5]}
2... g6 {[%clk 0:02:55.7]} 3. f3 {[%clk 0:02:59.5]} 3... Bg7 {[%clk 0:02:56]} 4.
e4 {[%clk 0:02:59.3]} 4... d6 {[%clk 0:02:56.6]} 5. Nc3 {[%clk 0:02:59.7]} 5...
O-O {[%clk 0:02:57.3]} 6. Bg5 {[%clk 0:03:00.2]} 6... Nc6 {[%clk 0:02:55.7]} 7.
Nge2 {[%clk 0:02:59]} 7... a6 {[%clk 0:02:55.7]} 8. Qd2 {[%clk 0:02:58.2]} 8...
Rb8 {[%clk 0:02:54.5]} 9. Bh6 {[%clk 0:02:55.3]} 9... b5 {[%clk 0:02:49.9]} 10.
cxb5 {[%clk 0:02:46.9]} 10... axb5 {[%clk 0:02:49.2]} 11. a3 {[%clk 0:02:46.6]}
11... Na5 {[%clk 0:02:43.6]} 12. Bxg7 {[%clk 0:02:43.2]} 12... Kxg7 {[%clk
0:02:43.1]} 13. Nc1 {[%clk 0:02:41.2]} 13... c6 {[%clk 0:02:33.1]} 14. b4 {[%clk
0:02:38.3]} 14... Nc4 {[%clk 0:02:26.8]} 15. Bxc4 {[%clk 0:02:37.3]} 15... bxc4
{[%clk 0:02:27.3]} 16. d5 {[%clk 0:02:33.3]} 16... cxd5 {[%clk 0:02:10.5]} 17.
Nxd5 {[%clk 0:02:32.9]} 17... e6 {[%clk 0:02:06.2]} 18. Nc3 {[%clk 0:02:23.8]}
18... d5 {[%clk 0:02:05.9]} 19. e5 {[%clk 0:02:23.6]} 19... Nh5 {[%clk
0:01:50.1]} 20. O-O {[%clk 0:02:21.7]} 20... f5 {[%clk 0:01:34.6]} 21. g4 {[%clk
0:02:17.7]} 21... fxg4 {[%clk 0:01:23.8]} 22. fxg4 {[%clk 0:02:17.3]} 22...
Rxf1+ {[%clk 0:00:55.7]} 23. Kxf1 {[%clk 0:02:17.1]} 23... Qf8+ {[%clk
0:00:53.6]} 24. Kg1 {[%clk 0:02:17.1]} 24... Nf4 {[%clk 0:00:53.5]} 25. N1e2
{[%clk 0:02:13.2]} 25... Nh3+ {[%clk 0:00:49.7]} 26. Kg2 {[%clk 0:02:13.1]}
26... d4 {[%clk 0:00:34.7]} 27. Nxd4 {[%clk 0:01:43.3]} 27... Nf4+ {[%clk
0:00:31]} 28. Kg3 {[%clk 0:01:43.2]} 28... g5 {[%clk 0:00:27.3]} 29. Rf1 {[%clk
0:01:37.1]} 29... Qe7 {[%clk 0:00:16.9]} 30. h4 {[%clk 0:01:34.5]} 30... h6
{[%clk 0:00:16.4]} 31. hxg5 {[%clk 0:01:31]} 31... hxg5 {[%clk 0:00:16.5]} 32.
Ne4 {[%clk 0:01:29.9]} 32... Bb7 {[%clk 0:00:14.9]} 33. Nd6 {[%clk 0:01:27.5]}
33... Rh8 {[%clk 0:00:13]} 34. N4f5+ {[%clk 0:01:26.7]} 34... Kg6 {[%clk
0:00:10.2]} 35. Nxe7+ {[%clk 0:01:26]} 35... Kg7 {[%clk 0:00:10.8]} 36. Rxf4
{[%clk 0:01:25.5]} 36... gxf4+ {[%clk 0:00:10]} 37. Qxf4 {[%clk 0:01:25.2]}
37... Rf8 {[%clk 0:00:08.5]} 38. Qg5+ {[%clk 0:01:24.6]} 38... Kh7 {[%clk
0:00:08.8]} 39. Qg6+ {[%clk 0:01:23]} 39... Kh8 {[%clk 0:00:09.7]} 40. Qh6#
{[%clk 0:01:22.3]} 1-0

[Event "*** Titled Tuesday Blitz"]
[Site "Chess.com"]
[Date "2020.11.10"]
[Round "1"]
[White "sorito"]
[Black "SantoBlue"]
[Result "0-1"]
[WhiteElo "2456"]
[BlackElo "2910"]
[TimeControl "180+1"]
[EndTime "10:06:17 PST"]
[Termination "SantoBlue won on time"]

1. Nf3 {[%clk 0:02:59.2]} 1... d6 {[%clk 0:02:58.1]} 2. g3 {[%clk 0:03:00.1]}
2... g6 {[%clk 0:02:56.4]} 3. Bg2 {[%clk 0:03:01]} 3... Bg7 {[%clk 0:02:56.2]}
4. O-O {[%clk 0:03:01.9]} 4... Nf6 {[%clk 0:02:56.2]} 5. d3 {[%clk 0:03:01.8]}
5... e5 {[%clk 0:02:53.6]} 6. Nbd2 {[%clk 0:03:02.7]} 6... Nc6 {[%clk
0:02:51.9]} 7. a3 {[%clk 0:03:00.8]} 7... O-O {[%clk 0:02:51]} 8. e4 {[%clk
0:02:53.5]} 8... h6 {[%clk 0:02:36.6]} 9. b4 {[%clk 0:02:53.2]} 9... a5 {[%clk
0:02:35.9]} 10. b5 {[%clk 0:02:53.2]} 10... Nb8 {[%clk 0:02:36.2]} 11. Bb2
{[%clk 0:02:53.3]} 11... Nbd7 {[%clk 0:02:36.4]} 12. Re1 {[%clk 0:02:53.3]}
12... Nc5 {[%clk 0:02:36.4]} 13. a4 {[%clk 0:02:52.4]} 13... Re8 {[%clk
0:02:27.6]} 14. h3 {[%clk 0:02:52.2]} 14... Nfd7 {[%clk 0:02:23.7]} 15. Nf1
{[%clk 0:02:42]} 15... Nb6 {[%clk 0:02:21.7]} 16. c3 {[%clk 0:02:41.7]} 16... c6
{[%clk 0:02:15.5]} 17. bxc6 {[%clk 0:02:40.9]} 17... bxc6 {[%clk 0:02:16.4]} 18.
Qc2 {[%clk 0:02:21.8]} 18... Rb8 {[%clk 0:02:13.5]} 19. Bc1 {[%clk 0:02:17]}
19... Be6 {[%clk 0:02:11.3]} 20. d4 {[%clk 0:01:52.2]} 20... exd4 {[%clk
0:01:59.9]} 21. cxd4 {[%clk 0:01:52.2]} 21... Nb3 {[%clk 0:01:59.8]} 22. Ra3
{[%clk 0:01:52.3]} 22... Nxd4 {[%clk 0:01:55.5]} 23. Nxd4 {[%clk 0:01:50.4]}
23... Bxd4 {[%clk 0:01:56.4]} 24. Bxh6 {[%clk 0:01:41.4]} 24... Nc4 {[%clk
0:01:55.8]} 25. Ra2 {[%clk 0:01:39.9]} 25... Qf6 {[%clk 0:01:51.6]} 26. Bf4
{[%clk 0:01:23.4]} 26... g5 {[%clk 0:01:48.3]} 27. Bc1 {[%clk 0:01:14.3]} 27...
Ne5 {[%clk 0:01:39]} 28. Ra3 {[%clk 0:01:14.3]} 28... g4 {[%clk 0:01:39.6]} 29.
hxg4 {[%clk 0:01:14]} 29... Bxg4 {[%clk 0:01:40.5]} 30. Be3 {[%clk 0:01:08.4]}
30... Rb2 {[%clk 0:01:36]} 31. Qc1 {[%clk 0:01:01.2]} 31... Bxe3 {[%clk
0:01:24.1]} 32. Qxe3 {[%clk 0:01:00.7]} 32... Nc4 {[%clk 0:01:23]} 33. e5 {[%clk
0:00:28.4]} 33... dxe5 {[%clk 0:01:13]} 0-1

[Event "*** Titled Tuesday Blitz"]
[Site "Chess.com"]
[Date "2020.11.10"]
[Round "1"]
[White "Sueetin"]
[Black "GelmanAlexander"]
[Result "0-1"]
[WhiteElo "2278"]
[BlackElo "2597"]
[TimeControl "180+1"]
[EndTime "10:06:20 PST"]
[Termination "GelmanAlexander won by resignation"]

1. c4 {[%clk 0:03:00.9]} 1... c5 {[%clk 0:02:57]} 2. g3 {[%clk 0:03:00.3]} 2...
Nf6 {[%clk 0:02:56.6]} 3. Bg2 {[%clk 0:02:59.9]} 3... e6 {[%clk 0:02:56.8]} 4.
Nf3 {[%clk 0:02:58.8]} 4... a6 {[%clk 0:02:55.8]} 5. O-O {[%clk 0:02:52.5]} 5...
Be7 {[%clk 0:02:56.3]} 6. Nc3 {[%clk 0:02:46.7]} 6... O-O {[%clk 0:02:55.9]} 7.
d4 {[%clk 0:02:45.5]} 7... cxd4 {[%clk 0:02:56.1]} 8. Nxd4 {[%clk 0:02:45]} 8...
d6 {[%clk 0:02:56.5]} 9. e4 {[%clk 0:02:35.9]} 9... Qc7 {[%clk 0:02:55.2]} 10.
b3 {[%clk 0:02:32.7]} 10... Nbd7 {[%clk 0:02:54.8]} 11. Be3 {[%clk 0:02:29.8]}
11... Ne5 {[%clk 0:02:54.1]} 12. h3 {[%clk 0:02:28.4]} 12... Bd7 {[%clk
0:02:51.8]} 13. Rc1 {[%clk 0:02:26.4]} 13... Rac8 {[%clk 0:02:51.5]} 14. Kh1
{[%clk 0:02:16.9]} 14... Qb8 {[%clk 0:02:50.6]} 15. Qd2 {[%clk 0:02:08]} 15...
b5 {[%clk 0:02:49.9]} 16. cxb5 {[%clk 0:02:03.3]} 16... axb5 {[%clk 0:02:50.8]}
17. f4 {[%clk 0:02:02.5]} 17... Ng6 {[%clk 0:02:50.7]} 18. Qf2 {[%clk 0:01:47]}
18... b4 {[%clk 0:02:41.7]} 19. Nce2 {[%clk 0:01:22.3]} 19... Qa8 {[%clk
0:02:37.5]} 20. Rxc8 {[%clk 0:01:12.8]} 20... Rxc8 {[%clk 0:02:36.5]} 21. e5
{[%clk 0:01:01.3]} 21... Ne4 {[%clk 0:02:35.9]} 22. Qf3 {[%clk 0:00:53.4]} 22...
d5 {[%clk 0:02:34.4]} 23. f5 {[%clk 0:00:35.6]} 23... Nxe5 {[%clk 0:02:29.9]}
24. Qh5 {[%clk 0:00:32.1]} 24... exf5 {[%clk 0:02:05.7]} 25. Nxf5 {[%clk
0:00:21.8]} 25... Bxf5 {[%clk 0:02:05.7]} 26. Qxf5 {[%clk 0:00:19.4]} 26... Bf6
{[%clk 0:01:43.6]} 27. Kh2 {[%clk 0:00:15.7]} 27... g6 {[%clk 0:01:34.3]} 28.
Qf4 {[%clk 0:00:12.8]} 28... Qxa2 {[%clk 0:01:14]} 29. Bxe4 {[%clk 0:00:10.9]}
29... dxe4 {[%clk 0:01:02.4]} 30. Qxf6 {[%clk 0:00:10.7]} 30... Qxe2+ {[%clk
0:01:02.1]} 31. Kg1 {[%clk 0:00:03.4]} 31... Qxe3+ {[%clk 0:01:01.7]} 0-1

[Event "*** Titled Tuesday Blitz"]
[Site "Chess.com"]
[Date "2020.11.10"]
[Round "1"]
[White "Triumphmate"]
[Black "Algeriano22"]
[Result "1-0"]
[WhiteElo "2375"]
[BlackElo "2690"]
[TimeControl "180+1"]
[EndTime "10:06:23 PST"]
[Termination "Triumphmate won on time"]

1. e4 {[%clk 0:02:59.4]} 1... e5 {[%clk 0:02:59.7]} 2. Nf3 {[%clk 0:02:59.3]}
2... Nc6 {[%clk 0:03:00]} 3. Nc3 {[%clk 0:02:59.2]} 3... Nf6 {[%clk 0:02:58.3]}
4. Bb5 {[%clk 0:02:53.2]} 4... Bb4 {[%clk 0:02:53.7]} 5. O-O {[%clk 0:02:50.9]}
5... O-O {[%clk 0:02:51.8]} 6. d3 {[%clk 0:02:49.5]} 6... d6 {[%clk 0:02:50.3]}
7. Bg5 {[%clk 0:02:49.4]} 7... Bxc3 {[%clk 0:02:46.1]} 8. bxc3 {[%clk
0:02:50.3]} 8... Ne7 {[%clk 0:02:45.9]} 9. Bxf6 {[%clk 0:02:46.4]} 9... gxf6
{[%clk 0:02:45.7]} 10. Nh4 {[%clk 0:02:47.3]} 10... c6 {[%clk 0:02:32.5]} 11.
Bc4 {[%clk 0:02:46.8]} 11... d5 {[%clk 0:02:31.7]} 12. Bb3 {[%clk 0:02:46.6]}
12... Ng6 {[%clk 0:01:52.6]} 13. Qh5 {[%clk 0:02:44.3]} 13... Be6 {[%clk
0:01:35.1]} 14. Rae1 {[%clk 0:02:19.7]} 14... Kh8 {[%clk 0:01:30.7]} 15. g3
{[%clk 0:02:04.9]} 15... Rg8 {[%clk 0:01:30]} 16. Nf5 {[%clk 0:01:54.4]} 16...
Qd7 {[%clk 0:01:09.7]} 17. Kh1 {[%clk 0:01:48.4]} 17... Ne7 {[%clk 0:00:58.5]}
18. Nxe7 {[%clk 0:01:46.1]} 18... Qxe7 {[%clk 0:00:58.4]} 19. f4 {[%clk
0:01:46.4]} 19... dxe4 {[%clk 0:00:31.2]} 20. Rxe4 {[%clk 0:01:42.1]} 20... Bd5
{[%clk 0:00:28]} 21. Bxd5 {[%clk 0:01:41.9]} 21... cxd5 {[%clk 0:00:28.9]} 22.
Re2 {[%clk 0:01:42.4]} 22... Rae8 {[%clk 0:00:11.9]} 23. fxe5 {[%clk 0:01:41]}
23... Rg5 {[%clk 0:00:12.1]} 24. Qf3 {[%clk 0:01:26.4]} 24... fxe5 {[%clk
0:00:03.5]} 25. Qxd5 {[%clk 0:01:20.3]} 25... f6 {[%clk 0:00:01.6]} 26. c4
{[%clk 0:01:15]} 26... Rg6 {[%clk 0:00:01.4]} 27. Rf5 {[%clk 0:01:12.1]} 27...
Kg7 {[%clk 0:00:01.6]} 28. Qe4 {[%clk 0:01:09.6]} 28... Rd8 {[%clk 0:00:01.8]}
29. Ref2 {[%clk 0:01:09.8]} 29... Rd6 {[%clk 0:00:01.8]} 30. c5 {[%clk
0:01:09.3]} 30... Re6 {[%clk 0:00:01.3]} 31. Kg2 {[%clk 0:01:05.8]} 31... Qd7
{[%clk 0:00:01.8]} 32. h4 {[%clk 0:01:04.9]} 1-0

[Event "*** Titled Tuesday Blitz"]
[Site "Chess.com"]
[Date "2020.11.10"]
[Round "1"]
[White "Blitzstream"]
[Black "mapleaff"]
[Result "1-0"]
[WhiteElo "2729"]
[BlackElo "2376"]
[TimeControl "180+1"]
[EndTime "10:06:24 PST"]
[Termination "Blitzstream won by resignation"]

1. d4 {[%clk 0:02:45.7]} 1... Nf6 {[%clk 0:02:59.2]} 2. Bg5 {[%clk 0:02:42.7]}
2... b6 {[%clk 0:02:55.8]} 3. Bxf6 {[%clk 0:02:41]} 3... gxf6 {[%clk 0:02:54.9]}
4. e4 {[%clk 0:02:40.2]} 4... Bb7 {[%clk 0:02:55]} 5. Nc3 {[%clk 0:02:38.7]}
5... h5 {[%clk 0:02:51.1]} 6. h4 {[%clk 0:02:24.9]} 6... e6 {[%clk 0:02:45.6]}
7. Be2 {[%clk 0:02:24]} 7... Bb4 {[%clk 0:02:40.6]} 8. Qd3 {[%clk 0:02:10.4]}
8... Ba6 {[%clk 0:02:36]} 9. Qe3 {[%clk 0:02:03.2]} 9... Qc8 {[%clk 0:02:20.1]}
10. O-O-O {[%clk 0:01:59.3]} 10... Bxe2 {[%clk 0:02:13.3]} 11. Ngxe2 {[%clk
0:01:57.9]} 11... Qa6 {[%clk 0:02:12.5]} 12. a3 {[%clk 0:01:50.8]} 12... Bxc3
{[%clk 0:02:11.9]} 13. Nxc3 {[%clk 0:01:51.7]} 13... Nc6 {[%clk 0:02:10.4]} 14.
d5 {[%clk 0:01:50.5]} 14... Ne5 {[%clk 0:02:09.1]} 15. Qf4 {[%clk 0:01:36.7]}
15... Ke7 {[%clk 0:02:06.9]} 16. Rd4 {[%clk 0:01:06.5]} 16... Rag8 {[%clk
0:01:59.1]} 17. g3 {[%clk 0:00:52.3]} 17... Rg4 {[%clk 0:01:54.3]} 18. Qe3
{[%clk 0:00:50.3]} 18... Qa5 {[%clk 0:01:22.7]} 19. f4 {[%clk 0:00:39.6]} 19...
Ng6 {[%clk 0:01:07.5]} 20. Rhd1 {[%clk 0:00:38.7]} 20... Rd8 {[%clk 0:01:05.5]}
21. Qd3 {[%clk 0:00:18.5]} 21... e5 {[%clk 0:00:59.2]} 22. Ra4 {[%clk
0:00:17.5]} 22... Qc5 {[%clk 0:00:57.9]} 23. f5 {[%clk 0:00:16.7]} 23... Nf8
{[%clk 0:00:51.2]} 24. Rc4 {[%clk 0:00:16.8]} 24... Qd6 {[%clk 0:00:51.1]} 25.
Nb5 {[%clk 0:00:16.7]} 25... a6 {[%clk 0:00:47.3]} 26. Nxd6 {[%clk 0:00:15.6]}
26... cxd6 {[%clk 0:00:48.2]} 27. Rb4 {[%clk 0:00:15.4]} 27... b5 {[%clk
0:00:48]} 28. a4 {[%clk 0:00:15.8]} 28... bxa4 {[%clk 0:00:46.3]} 29. Rxa4
{[%clk 0:00:16.1]} 29... Rc8 {[%clk 0:00:42.6]} 30. Rxa6 {[%clk 0:00:16.2]} 1-0

[Event "*** Titled Tuesday Blitz"]
[Site "Chess.com"]
[Date "2020.11.10"]
[Round "1"]
[White "Sibelephant"]
[Black "Lenyas66"]
[Result "1-0"]
[WhiteElo "3090"]
[BlackElo "2472"]
[TimeControl "180+1"]
[EndTime "10:06:27 PST"]
[Termination "Sibelephant won by resignation"]

1. d4 {[%clk 0:02:59.5]} 1... e6 {[%clk 0:02:59.5]} 2. c4 {[%clk 0:02:58.5]}
2... Bb4+ {[%clk 0:02:59.4]} 3. Bd2 {[%clk 0:02:58.2]} 3... a5 {[%clk
0:02:59.2]} 4. g3 {[%clk 0:02:57.6]} 4... d5 {[%clk 0:02:58.5]} 5. Qc2 {[%clk
0:02:56.1]} 5... Nc6 {[%clk 0:02:52.5]} 6. Nf3 {[%clk 0:02:54.4]} 6... dxc4
{[%clk 0:02:52.2]} 7. Qxc4 {[%clk 0:02:54.1]} 7... Qd5 {[%clk 0:02:51.8]} 8.
Qxd5 {[%clk 0:02:48]} 8... exd5 {[%clk 0:02:51.4]} 9. Bg2 {[%clk 0:02:48.4]}
9... Bg4 {[%clk 0:02:40.6]} 10. e3 {[%clk 0:02:44.7]} 10... Nge7 {[%clk
0:02:29.2]} 11. O-O {[%clk 0:02:41.5]} 11... Bd6 {[%clk 0:02:08.3]} 12. Nc3
{[%clk 0:02:40.6]} 12... Na7 {[%clk 0:01:55.6]} 13. Rac1 {[%clk 0:02:32.5]}
13... c6 {[%clk 0:01:55.3]} 14. e4 {[%clk 0:02:23.4]} 14... O-O {[%clk
0:01:47.6]} 15. Rfe1 {[%clk 0:02:17.3]} 15... h6 {[%clk 0:01:42.1]} 16. exd5
{[%clk 0:02:13.5]} 16... Nxd5 {[%clk 0:01:41.5]} 17. Nxd5 {[%clk 0:02:12.4]}
17... cxd5 {[%clk 0:01:41.7]} 18. Ne5 {[%clk 0:02:00.9]} 18... Bxe5 {[%clk
0:01:40]} 19. Rxe5 {[%clk 0:01:58.5]} 19... Nc6 {[%clk 0:01:39.9]} 20. Rxd5
{[%clk 0:01:58.6]} 20... Be6 {[%clk 0:01:39.4]} 21. Rd6 {[%clk 0:01:57.6]} 21...
Bxa2 {[%clk 0:01:32.4]} 22. d5 {[%clk 0:01:55.9]} 22... Nd4 {[%clk 0:01:29.4]}
23. Re1 {[%clk 0:01:35.8]} 23... Bc4 {[%clk 0:01:21.5]} 24. Rd7 {[%clk
0:01:27.8]} 24... b6 {[%clk 0:01:18.1]} 25. Re4 {[%clk 0:01:12.3]} 25... Bb5
{[%clk 0:01:14.6]} 26. Rb7 {[%clk 0:01:04.5]} 26... Ne2+ {[%clk 0:01:13.4]} 27.
Kh1 {[%clk 0:01:04.5]} 27... Rab8 {[%clk 0:01:12.4]} 28. Rxb8 {[%clk 0:01:00.3]}
28... Rxb8 {[%clk 0:01:12.3]} 29. Bf3 {[%clk 0:01:00.8]} 29... f5 {[%clk
0:00:35.9]} 30. Bxe2 {[%clk 0:01:00.9]} 30... fxe4 {[%clk 0:00:33.8]} 31. Bxb5
{[%clk 0:01:01.1]} 31... g5 {[%clk 0:00:28.5]} 32. d6 {[%clk 0:00:53.3]} 32...
Kf7 {[%clk 0:00:27.6]} 33. Bc3 {[%clk 0:00:48.4]} 33... Ke6 {[%clk 0:00:26]} 34.
d7 {[%clk 0:00:48.9]} 34... Rf8 {[%clk 0:00:20.5]} 35. Bd4 {[%clk 0:00:47.8]}
35... Kd6 {[%clk 0:00:16.6]} 36. Bxb6 {[%clk 0:00:47.6]} 1-0

[Event "*** Titled Tuesday Blitz"]
[Site "Chess.com"]
[Date "2020.11.10"]
[Round "1"]
[White "Iskusnyh"]
[Black "Chess2019Player"]
[Result "1-0"]
[WhiteElo "2570"]
[BlackElo "2243"]
[TimeControl "180+1"]
[EndTime "10:06:27 PST"]
[Termination "Iskusnyh won on time"]

1. d4 {[%clk 0:02:57.1]} 1... Nf6 {[%clk 0:02:54.4]} 2. c4 {[%clk 0:02:56.2]}
2... c5 {[%clk 0:02:54.3]} 3. d5 {[%clk 0:02:54.9]} 3... e6 {[%clk 0:02:53.2]}
4. Nc3 {[%clk 0:02:53.8]} 4... exd5 {[%clk 0:02:53.2]} 5. cxd5 {[%clk
0:02:54.7]} 5... d6 {[%clk 0:02:53.5]} 6. Nf3 {[%clk 0:02:54.5]} 6... g6 {[%clk
0:02:53.4]} 7. Nd2 {[%clk 0:02:55.1]} 7... Bg7 {[%clk 0:02:53.5]} 8. e4 {[%clk
0:02:55.7]} 8... O-O {[%clk 0:02:53.5]} 9. Be2 {[%clk 0:02:56.2]} 9... Re8
{[%clk 0:02:40.2]} 10. O-O {[%clk 0:02:55.7]} 10... b6 {[%clk 0:02:40.6]} 11. f3
{[%clk 0:02:18.8]} 11... Ba6 {[%clk 0:02:37.5]} 12. Nc4 {[%clk 0:02:16.1]} 12...
Bxc4 {[%clk 0:02:20.4]} 13. Bxc4 {[%clk 0:02:15.1]} 13... Nbd7 {[%clk
0:02:21.3]} 14. a4 {[%clk 0:02:06.2]} 14... Ne5 {[%clk 0:02:01.7]} 15. Bb5
{[%clk 0:02:05.5]} 15... Re7 {[%clk 0:02:01.1]} 16. f4 {[%clk 0:01:56.9]} 16...
Ned7 {[%clk 0:01:25.7]} 17. Qf3 {[%clk 0:01:54.2]} 17... Ne8 {[%clk 0:01:09.5]}
18. Bd2 {[%clk 0:01:46.3]} 18... Nc7 {[%clk 0:01:04.3]} 19. Bc6 {[%clk
0:01:44.6]} 19... Rb8 {[%clk 0:01:01.9]} 20. e5 {[%clk 0:01:32.5]} 20... Ne8
{[%clk 0:00:58.6]} 21. e6 {[%clk 0:01:29.3]} 21... Ndf6 {[%clk 0:00:40.3]} 22.
f5 {[%clk 0:01:25.5]} 22... h6 {[%clk 0:00:22.1]} 23. exf7+ {[%clk 0:01:17.5]}
23... Rxf7 {[%clk 0:00:18.3]} 24. fxg6 {[%clk 0:01:17.4]} 24... Rf8 {[%clk
0:00:18.2]} 25. Rae1 {[%clk 0:01:15.4]} 25... Nd7 {[%clk 0:00:11.6]} 26. Qf7+
{[%clk 0:01:12.8]} 26... Kh8 {[%clk 0:00:03.5]} 27. Qxd7 {[%clk 0:01:09.9]}
27... Bd4+ {[%clk 0:00:02.3]} 28. Kh1 {[%clk 0:01:08.7]} 28... Rxf1+ {[%clk
0:00:02.9]} 29. Rxf1 {[%clk 0:01:08.7]} 29... Qxd7 {[%clk 0:00:02.5]} 30. Bxd7
{[%clk 0:01:07.7]} 30... Nf6 {[%clk 0:00:03.1]} 31. Be6 {[%clk 0:01:05]} 31...
Kg7 {[%clk 0:00:02.5]} 32. Nb5 {[%clk 0:01:03.9]} 32... Be5 {[%clk 0:00:01.3]}
33. Bf7 {[%clk 0:01:02.1]} 33... Rd8 {[%clk 0:00:01.1]} 34. Nc7 {[%clk
0:01:01.3]} 1-0

[Event "*** Titled Tuesday Blitz"]
[Site "Chess.com"]
[Date "2020.11.10"]
[Round "1"]
[White "Guenplen"]
[Black "SharapovEvgeny"]
[Result "1/2-1/2"]
[WhiteElo "2884"]
[BlackElo "2457"]
[TimeControl "180+1"]
[EndTime "10:06:28 PST"]
[Termination "Game drawn by repetition"]

1. d4 {[%clk 0:03:00.9]} 1... d5 {[%clk 0:02:59.6]} 2. Bf4 {[%clk 0:03:00.2]}
2... c6 {[%clk 0:02:59.4]} 3. e3 {[%clk 0:03:00.3]} 3... Nf6 {[%clk 0:02:58.6]}
4. c4 {[%clk 0:03:00.4]} 4... g6 {[%clk 0:02:58]} 5. Nc3 {[%clk 0:03:00]} 5...
Bg7 {[%clk 0:02:57.6]} 6. h3 {[%clk 0:03:00.3]} 6... O-O {[%clk 0:02:57.1]} 7.
Nf3 {[%clk 0:03:00.1]} 7... Bf5 {[%clk 0:02:53.7]} 8. Qb3 {[%clk 0:02:55.2]}
8... Qb6 {[%clk 0:02:52.8]} 9. c5 {[%clk 0:02:51.9]} 9... Qxb3 {[%clk
0:02:51.9]} 10. axb3 {[%clk 0:02:52.8]} 10... a6 {[%clk 0:02:51.5]} 11. b4
{[%clk 0:02:52]} 11... Nbd7 {[%clk 0:02:50.9]} 12. Be2 {[%clk 0:02:51.8]} 12...
Ne4 {[%clk 0:02:50.4]} 13. g4 {[%clk 0:02:47.5]} 13... Nxc3 {[%clk 0:02:49.7]}
14. bxc3 {[%clk 0:02:48.4]} 14... Be4 {[%clk 0:02:49.3]} 15. O-O {[%clk
0:02:45.2]} 15... Bxf3 {[%clk 0:02:48.6]} 16. Bxf3 {[%clk 0:02:45]} 16... e5
{[%clk 0:02:48.1]} 17. Bh2 {[%clk 0:02:41.7]} 17... Rae8 {[%clk 0:02:43.1]} 18.
Bg2 {[%clk 0:02:30.6]} 18... f5 {[%clk 0:02:41.4]} 19. g5 {[%clk 0:02:24.8]}
19... f4 {[%clk 0:02:31.1]} 20. h4 {[%clk 0:02:22.5]} 20... Rf7 {[%clk
0:02:21.6]} 21. Bh3 {[%clk 0:02:19.4]} 21... f3 {[%clk 0:02:14.5]} 22. Bg3
{[%clk 0:02:10.8]} 22... e4 {[%clk 0:02:12.9]} 23. Kh2 {[%clk 0:02:01.4]} 23...
h6 {[%clk 0:02:12.1]} 24. gxh6 {[%clk 0:02:00]} 24... Bxh6 {[%clk 0:02:11.8]}
25. Rg1 {[%clk 0:01:52.3]} 25... Kh7 {[%clk 0:02:10.8]} 26. Bd6 {[%clk
0:01:47.9]} 26... Nf6 {[%clk 0:02:09.6]} 27. Be5 {[%clk 0:01:44.1]} 27... Nh5
{[%clk 0:02:07.8]} 28. Bg4 {[%clk 0:01:39.2]} 28... Bg7 {[%clk 0:02:06.2]} 29.
Bd6 {[%clk 0:01:34.1]} 29... Bf8 {[%clk 0:02:05.7]} 30. Bxf8 {[%clk 0:01:26.4]}
30... Rexf8 {[%clk 0:02:04.1]} 31. Bxh5 {[%clk 0:01:26.9]} 31... gxh5 {[%clk
0:02:03.5]} 32. Rg5 {[%clk 0:01:27.5]} 32... Rf5 {[%clk 0:02:00.2]} 33. Rag1
{[%clk 0:01:26.3]} 33... Rxg5 {[%clk 0:01:59.5]} 34. Rxg5 {[%clk 0:01:27.2]}
34... Kh6 {[%clk 0:01:56.9]} 35. Kg3 {[%clk 0:01:26.6]} 35... Rf6 {[%clk
0:01:52.7]} 36. Rg8 {[%clk 0:01:11.7]} 36... Rf7 {[%clk 0:01:29.4]} 37. Kh3
{[%clk 0:01:02]} 37... Kh7 {[%clk 0:01:24.3]} 38. Rg5 {[%clk 0:01:01]} 38... Kh6
{[%clk 0:01:23.6]} 39. Rg8 {[%clk 0:01:00.5]} 39... Kh7 {[%clk 0:01:23.1]} 40.
Rg1 {[%clk 0:00:36.6]} 40... Kh6 {[%clk 0:01:21.6]} 41. Rg3 {[%clk 0:00:22.8]}
41... Rf6 {[%clk 0:01:19.2]} 42. Rg8 {[%clk 0:00:19.5]} 42... Rf7 {[%clk
0:01:14.2]} 43. Rh8+ {[%clk 0:00:17.5]} 43... Kg6 {[%clk 0:01:13.7]} 44. Rg8+
{[%clk 0:00:12.2]} 44... Kh7 {[%clk 0:01:12.8]} 1/2-1/2